fUST/lending_fUST_20260101
["ID","MTS","AMOUNT","RATE_DAILY","PERIOD"]
[400266097,1767243044069,-281.93691,0.00037111,31]
[400266098,1767243044170,-281.93691,0.00037111,31]
[400266099,1767243044181,-281.93691,0.00037111,31]
[400266100,1767243044191,-151.0,0.00037111,31]
[400266101,1767243044200,-352.904204,0.00037111,31]
[400266102,1767243044212,-352.904204,0.00037111,31]
[400266103,1767243044222,-151.0,0.00037111,31]
[400266104,1767243044232,-352.904204,0.00037111,31]
[400266105,1767243044252,-151.0,0.00037111,31]
[400266106,1767243044263,-352.904204,0.00037111,31]
[400266107,1767243044273,-151.0,0.00037111,31]
[400266108,1767243044284,-151.0,0.00037111,31]
[400266109,1767243044295,-167.132985,0.00037111,31]
[400266110,1767243044305,-151.0,0.00037111,31]
[400266111,1767243044315,-151.0,0.00037111,31]
[400266112,1767243044326,-177.350557,0.00037111,7]
[400266113,1767243044336,-294.476225,0.00037111,31]
[400266114,1767243044346,-372.072173,0.00037111,31]
[400266115,1767243044356,-234.732816,0.00037111,31]
[400266116,1767243044366,-294.476225,0.00037111,31]
[400266117,1767243044377,-372.072173,0.00037111,31]
[400266118,1767243044387,-234.732816,0.00037111,31]
[400266119,1767243044397,-294.476225,0.00037111,31]
[400266120,1767243044407,-372.072173,0.00037111,31]
[400266121,1767243044417,-234.732816,0.00037111,31]
[400266122,1767243044428,-294.476225,0.00037111,31]
[400266123,1767243044438,-372.072173,0.00037111,31]
[400266124,1767243044448,-234.732816,0.00037111,31]
[400266125,1767243044457,-151.0,0.00037111,31]
[400266126,1767243044466,-151.0,0.00037111,31]
[400266127,1767243044476,-151.0,0.00037111,31]
[400266128,1767243044485,-151.0,0.00037111,31]
[400266129,1767243044495,-151.0,0.00037111,31]
[400266130,1767243044504,-200.0,0.00037124,120]
[400266131,1767243044514,-628.0,0.00037141,2]
[400266132,1767243044524,-2157.0,0.00037141,2]
[400266133,1767243044534,-1364.0,0.00037141,2]
[400266134,1767243044543,-1608.26373007,0.00037142,2]
[400266135,1767243044553,-2190.003872,0.00037151,31]
[400266136,1767243044562,-2190.003872,0.00037151,31]
[400266137,1767243044572,-2190.003872,0.00037151,31]
[400266138,1767243044581,-2190.003872,0.00037151,31]
[400266139,1767243044590,-280.12711,0.00037151,31]
[400266140,1767243044600,-151.0,0.00037151,31]
[400266141,1767243044609,-151.0,0.00037151,31]
[400266142,1767243044618,-1310.34,0.0003716,60]
[400266143,1767243044629,-1608.26373007,0.00037176,2]
[400266144,1767243044639,-1608.26373007,0.00037211,2]
[400266145,1767243044649,-200.0,0.0003722,120]
[400266146,1767243044659,-151.0,0.00037244,31]
[400266147,1767243044670,-151.0,0.00037244,31]
[400266148,1767243044679,-151.0,0.00037244,31]
[400266149,1767243044689,-151.0,0.00037244,31]
[400266150,1767243044699,-151.0,0.00037244,31]
[400266151,1767243044709,-151.0,0.00037244,31]
[400266152,1767243044719,-151.0,0.00037244,31]
[400266153,1767243044728,-193.779876,0.00037244,31]
[400266154,1767243044738,-193.779876,0.00037244,31]
[400266155,1767243044748,-193.779876,0.00037244,31]
[400266156,1767243044758,-193.779876,0.00037244,31]
[400266157,1767243044768,-151.0,0.00037244,7]
[400266158,1767243044777,-198.055814,0.00037244,7]
[400266159,1767243044787,-151.0,0.00037244,31]
[400266160,1767243044797,-151.0,0.00037244,31]
[400266161,1767243044806,-151.0,0.00037244,31]
[400266162,1767243044816,-151.0,0.00037244,31]
[400266163,1767243044826,-151.0,0.00037244,31]
[400266164,1767243044835,-151.0,0.00037244,31]
[400266165,1767243044845,-151.0,0.00037244,31]
[400266166,1767243044855,-151.0,0.00037244,31]
[400266167,1767243044865,-200.0,0.00037255,120]
[400266168,1767243044874,-1310.34,0.0003726,60]
[400266169,1767243044884,-250.0,0.000373,14]
[400266170,1767243044894,-250.0,0.000373,14]
[400266171,1767243044903,-151.0,0.000373,120]
[400266172,1767243044914,-992105.61910063,0.00037311,20]
[400266173,1767243045075,-13249.0,0.000339,30]
[400266174,1767243045085,-13249.0,0.00036976,30]
[400266175,1767243045094,-1041.81212,0.00037011,31]
[400266176,1767243045104,-151.0,0.00037011,31]
[400266177,1767243045113,-50580.88571431,0.00037311,20]
[400266178,1767243045201,-1539.47300136,0.00037311,20]
[400266180,1767243046451,-1902.53906843,0.00036976,30]
[400266181,1767243084168,252.5,0.00010045,5]
[400266182,1767243084595,252.5,0.00010045,6]
[400266183,1767243103126,181.729,0.00010816,2]
[400266187,1767243264843,169.29286,5.013e-05,2]
[400266188,1767243265049,169.29286,7.519e-05,2]
[400266189,1767243265261,169.29286,0.00010026,2]
[400266201,1767243449372,1526.6589136,0.00010077,2]
[400266203,1767243696862,150.0,0.00010864,2]
[400266204,1767243701301,201.22280694,0.00010864,2]
[400266205,1767243701450,201.42021145,0.00010864,2]
[400266206,1767243701802,213.89109528,0.00010864,2]
[400266207,1767243702005,202.63574367,0.00010864,2]
[400266208,1767243702293,203.05365841,0.00010864,2]
[400266209,1767243703168,150.0,0.00010864,2]
[400266210,1767243703235,500.0,0.00010864,2]
[400266211,1767243703397,160.94726979,0.00010864,2]
[400266212,1767243791608,150.0,0.00010864,2]
[400266213,1767243930540,150.0,0.00010864,2]
[400266214,1767244079638,347.52,9.99e-05,2]
[400266215,1767244079899,347.52,9.99e-05,2]
[400266216,1767244084504,674.94537194,0.00010874,2]
[400266217,1767244096638,150.0,0.00010864,2]
[400266219,1767244153521,150.0,0.00010864,2]
[400266220,1767244166109,-977.0455428,0.00010893,2]
[400266244,1767244231909,-378.72774304,0.00010892,2]
[400266246,1767244231918,-444.12316851,0.00010892,2]
[400266288,1767244232306,-55.87683149,0.00010892,2]
[400266290,1767244232315,-478.67078695,0.00010892,2]
[400266519,1767244238057,-21.32921305,0.00010892,2]
[400266520,1767244238067,-500.0,0.00010892,2]
[400266521,1767244238077,-500.0,0.00010892,2]
[400266522,1767244238087,-500.0,0.00010892,2]
[400266523,1767244238097,-500.0,0.00010892,2]
[400266524,1767244238107,-500.0,0.00010892,2]
[400266525,1767244238116,-500.0,0.00010892,2]
[400266526,1767244238126,-500.0,0.00010892,2]
[400266527,1767244238137,-500.0,0.00010892,2]
[400266528,1767244238146,-500.0,0.00010892,2]
[400266529,1767244238156,-500.0,0.00010892,2]
[400266530,1767244238166,-500.0,0.00010892,2]
[400266531,1767244238175,-300.0,0.00010892,2]
[400266532,1767244238184,-300.0,0.00010892,2]
[400266534,1767244238194,-300.0,0.00010892,2]
[400266536,1767244238204,-573.0,0.00010892,2]
[400266538,1767244238213,-266.0,0.00010892,2]
[400266539,1767244238223,-999022.9544572,0.00010893,2]
[400266540,1767244238233,-999.0,0.00010959,2]
[400266541,1767244238242,-500.0,0.00010959,2]
[400266542,1767244238252,-500.0,0.00010959,2]
[400266543,1767244238261,-402.52099288,0.00010959,2]
[400266544,1767244238271,-300.0,0.0001099,2]
[400266545,1767244238282,-50000.0,0.00010991,2]
[400266546,1767244238291,-1200.0,0.00010991,2]
[400266547,1767244238300,-166.9298391,0.00010991,2]
[400266548,1767244238310,-500.0,0.00010995,2]
[400266549,1767244238320,-500.0,0.00010995,2]
[400266550,1767244238330,-500.0,0.00010995,2]
[400266551,1767244238339,-500.0,0.00010995,2]
[400266552,1767244238348,-500.0,0.00010995,2]
[400266553,1767244238358,-500.0,0.00010995,2]
[400266554,1767244238367,-500.0,0.00010995,2]
[400266555,1767244238377,-151.0,0.00011,2]
[400266556,1767244238386,-151.0,0.00011,2]
[400266557,1767244238396,-151.0,0.00011,2]
[400266558,1767244238406,-501.75567666,0.00011001,2]
[400266559,1767244238415,-150.0,0.00011001,2]
[400266560,1767244238426,-150.0,0.00011001,2]
[400266561,1767244238435,-150.0,0.00011001,2]
[400266562,1767244238445,-619.84104043,0.00011038,2]
[400266563,1767244238455,-150.0,0.00011138,2]
[400266564,1767244238465,-250.0,0.00011138,2]
[400266565,1767244238475,-150.0,0.00011138,2]
[400266566,1767244238485,-150.0,0.00011275,2]
[400266567,1767244238495,-250.0,0.00011275,2]
[400266568,1767244238505,-150.0,0.00011412,2]
[400266569,1767244238514,-250.0,0.00011549,2]
[400266570,1767244238525,-363.0,0.0001197,2]
[400266571,1767244238535,-420.0,0.0001197,2]
[400266572,1767244238545,-150.0,0.00011982,2]
[400266573,1767244238554,-301.0,0.00012089,2]
[400266574,1767244238564,-907.45,0.00012329,2]
[400266575,1767244238574,-1213.14,0.00012329,2]
[400266576,1767244238584,-1010.95,0.00012329,2]
[400266577,1767244238594,-842.46,0.00012329,2]
[400266578,1767244238603,-702.05,0.00012329,2]
[400266579,1767244238612,-585.04,0.00012329,2]
[400266580,1767244238622,-487.53,0.00012329,2]
[400266581,1767244238632,-406.28,0.00012329,2]
[400266582,1767244238641,-338.57,0.00012329,2]
[400266583,1767244238652,-282.14,0.00012329,2]
[400266584,1767244238661,-235.11,0.00012329,2]
[400266585,1767244238670,-195.93,0.00012329,2]
[400266586,1767244238679,-163.27,0.00012329,2]
[400266587,1767244238689,-816.4,0.00012329,2]
[400266588,1767244238699,-471.46700113,0.00012644,2]
[400266589,1767244238708,-207.67,0.00012971,2]
[400266590,1767244238718,-207.67,0.00012971,2]
[400266591,1767244238732,-207.67,0.00012971,2]
[400266592,1767244238741,-207.67,0.00012971,2]
[400266593,1767244238751,-207.67,0.00012971,2]
[400266594,1767244238760,-207.67,0.00012971,2]
[400266595,1767244238771,-207.67,0.00012971,2]
[400266596,1767244238780,-168.05,0.00012971,2]
[400266597,1767244238791,-196.97721014,0.00012991,2]
[400266598,1767244238802,-168.06,0.00013071,2]
[400266599,1767244238812,-587.0,0.00013155,2]
[400266600,1767244238821,-500.0,0.00013273,2]
[400266601,1767244238831,-500.0,0.00013273,2]
[400266602,1767244238840,-510.90139551,0.00013273,2]
[400266603,1767244238850,-497.57485249,0.00013273,2]
[400266604,1767244238859,-500.0,0.00013273,2]
[400266605,1767244238869,-500.0,0.00013273,2]
[400266606,1767244238878,-500.0,0.00013273,2]
[400266607,1767244238888,-500.0,0.00013273,2]
[400266608,1767244238898,-500.0,0.00013273,2]
[400266609,1767244238907,-500.0,0.00013273,2]
[400266610,1767244238917,-500.0,0.00013273,2]
[400266611,1767244238926,-500.0,0.00013273,2]
[400266612,1767244238936,-500.0,0.00013273,2]
[400266613,1767244238946,-505.39134232,0.00013273,2]
[400266614,1767244238955,-471.46700113,0.00013304,2]
[400266615,1767244238964,-1682.55469545,0.0001354,2]
[400266616,1767244238974,-300.0,0.00013673,2]
[400266617,1767244238984,-582.30404194,0.00013698,2]
[400266618,1767244238994,-500.0,0.00013698,2]
[400266619,1767244239003,-500.0,0.00013698,2]
[400266620,1767244239013,-501.34554409,0.00013698,2]
[400266621,1767244239023,-500.0,0.00013698,2]
[400266622,1767244239033,-530.23109502,0.00013698,2]
[400266623,1767244239042,-634.29682706,0.00013698,2]
[400266624,1767244239052,-15492.5924877,0.00013699,2]
[400266625,1767244239062,-1000.0,0.00013699,2]
[400266626,1767244239072,-2943.2889994,0.00013699,2]
[400266627,1767244239082,-500.0,0.00013699,2]
[400266628,1767244239093,-500.0,0.00013699,2]
[400266629,1767244239102,-504.76855077,0.00013699,2]
[400266630,1767244239111,-500.0,0.00013699,2]
[400266631,1767244239121,-500.0,0.00013699,2]
[400266632,1767244239131,-500.0,0.00013699,2]
[400266633,1767244239140,-500.0,0.00013699,2]
[400266634,1767244239150,-500.0,0.00013699,2]
[400266635,1767244239159,-150.0,0.00013699,2]
[400266636,1767244239169,-500.0,0.00013699,2]
[400266637,1767244239181,-159.77203792,0.00013699,2]
[400266638,1767244239191,-457.22674749,0.00013699,2]
[400266639,1767244239200,-500.0,0.00013699,2]
[400266640,1767244239209,-500.0,0.00013699,2]
[400266641,1767244239219,-500.0,0.00013699,2]
[400266642,1767244239229,-500.0,0.00013699,2]
[400266643,1767244239240,-500.87963329,0.00013699,2]
[400266644,1767244239249,-501.33800671,0.00013699,2]
[400266645,1767244239259,-500.0,0.00013699,2]
[400266646,1767244239268,-500.0,0.00013699,2]
[400266647,1767244239278,-251.00272433,0.00013699,2]
[400266648,1767244239287,-500.0,0.00013699,2]
[400266649,1767244239296,-500.0,0.00013699,2]
[400266650,1767244239306,-500.41254196,0.00013699,2]
[400266651,1767244239315,-500.50269191,0.00013699,2]
[400266652,1767244239324,-500.0,0.00013699,2]
[400266653,1767244239333,-500.27689491,0.00013699,2]
[400266654,1767244239343,-226.86184291,0.00013699,2]
[400266655,1767244239351,-316.4851046,0.00013699,2]
[400266656,1767244239361,-501.3582173,0.00013699,2]
[400266657,1767244239370,-383.99222334,0.00013699,2]
[400266658,1767244239379,-500.73491636,0.00013699,2]
[400266659,1767244239388,-500.79513169,0.00013699,2]
[400266660,1767244239397,-500.49764939,0.00013699,2]
[400266661,1767244239407,-524.82836698,0.00013699,2]
[400266662,1767244239416,-373.28262423,0.00013699,2]
[400266663,1767244239425,-500.40244192,0.00013699,2]
[400266664,1767244239434,-534.87876427,0.00013699,2]
[400266665,1767244239444,-500.95516799,0.00013699,2]
[400266666,1767244239453,-500.0,0.00013699,2]
[400266667,1767244239463,-500.0867866,0.00013699,2]
[400266668,1767244239473,-501.34213841,0.00013699,2]
[400266669,1767244239483,-500.96605192,0.00013699,2]
[400266670,1767244239493,-500.0,0.00013699,2]
[400266671,1767244239502,-500.17833478,0.00013699,2]
[400266672,1767244239512,-500.0,0.00013699,2]
[400266673,1767244239521,-500.86510493,0.00013699,2]
[400266674,1767244239531,-1041.08539316,0.00013821,2]
[400266675,1767244239540,-987.40538387,0.00013821,2]
[400266676,1767244239549,-1001.18082375,0.00013821,2]
[400266677,1767244239559,-1000.0,0.00013821,2]
[400266678,1767244239568,-507.02514153,0.00013821,2]
[400266679,1767244239577,-1000.0,0.00013821,2]
[400266680,1767244239587,-1000.0,0.00013821,2]
[400266681,1767244239597,-502.4239539,0.00013821,2]
[400266682,1767244239607,-527.43501459,0.00013821,2]
[400266683,1767244239616,-1000.0,0.00013821,2]
[400266684,1767244239626,-501.63273171,0.00013821,2]
[400266685,1767244239635,-471.46700113,0.00013963,2]
[400266686,1767244239644,-252.09,0.0001416,2]
[400266687,1767244239654,-600.0,0.00014221,2]
[400266688,1767244239663,-1000.0,0.00014247,2]
[400266689,1767244239672,-1000.0,0.00014247,2]
[400266690,1767244239681,-502.44886287,0.00014247,2]
[400266691,1767244239691,-1000.0,0.00014247,2]
[400266692,1767244239700,-400.0,0.00014247,2]
[400266693,1767244239709,-502.7866066,0.00014247,2]
[400266694,1767244239718,-1001.84835347,0.00014247,2]
[400266695,1767244239731,-1082.59288447,0.00014247,2]
[400266696,1767244239741,-1001.95418441,0.00014247,2]
[400266697,1767244239750,-1100.08232842,0.00014247,2]
[400266698,1767244239759,-160.44722878,0.00014247,2]
[400266699,1767244239767,-1000.0,0.00014247,2]
[400266700,1767244239778,-503.848502,0.00014247,2]
[400266701,1767244239787,-198.34157968,0.00014247,2]
[400266702,1767244239796,-151.52027531,0.00014368,2]
[400266703,1767244239805,-1500.0,0.00014368,2]
[400266705,1767244239814,-1629.14531311,0.00014368,2]
[400266707,1767244239824,-1501.39987686,0.00014368,2]
[400266709,1767244239833,-823.0,0.00014458,2]
[400266711,1767244239842,-471.46700113,0.00014623,2]
[400266713,1767244239851,-1000.0,0.00014795,2]
[400266715,1767244239861,-501.18575005,0.00014795,2]
[400266716,1767244239870,-500.0,0.00014795,2]
[400266717,1767244239880,-1042.69681858,0.00014795,2]
[400266718,1767244239889,-52998.81271165,0.00014882,2]
[400266719,1767244239898,-1506.13602634,0.00014916,2]
[400266720,1767244239908,-227.02458118,0.00014991,2]
[400266721,1767244239917,-336.12,0.00015249,2]
[400266722,1767244239926,-471.93846813,0.00015282,2]
[400266723,1767244239935,-876.0,0.00015889,2]
[400266724,1767244239944,-420.15,0.00016338,2]
[400266725,1767244239954,-257.07195221,0.00016991,2]
[400266726,1767244239963,-504.18,0.00017428,2]
[400266727,1767244239972,-619.84104039,0.000175,2]
[400266728,1767244239981,-588.2,0.00018517,2]
[400266729,1767244239991,-302.9394212,0.000189,2]
[400266731,1767244240000,-287.11932325,0.00018991,2]
[400266732,1767244240009,-302.9394212,0.00019089,2]
[400266734,1767244240018,-796.7,0.00019178,2]
[400266735,1767244240027,-796.7,0.00019178,2]
[400266736,1767244240036,-796.7,0.00019178,2]
[400266737,1767244240045,-796.7,0.00019178,2]
[400266738,1767244240054,-796.7,0.00019178,2]
[400266739,1767244240063,-796.7,0.00019178,2]
[400266740,1767244240073,-796.7,0.00019178,2]
[400266741,1767244240082,-796.7,0.00019178,2]
[400266742,1767244240091,-796.7,0.00019178,2]
[400266743,1767244240101,-796.7,0.00019178,2]
[400266744,1767244240110,-796.7,0.00019178,2]
[400266745,1767244240119,-796.7,0.00019178,2]
[400266746,1767244240129,-796.7,0.00019178,2]
[400266747,1767244240138,-796.7,0.00019178,2]
[400266748,1767244240147,-796.7,0.00019178,2]
[400266749,1767244240157,-796.7,0.00019178,2]
[400266750,1767244240166,-796.7,0.00019178,2]
[400266751,1767244240175,-796.7,0.00019178,2]
[400266752,1767244240184,-796.7,0.00019178,2]
[400266753,1767244240193,-796.7,0.00019178,2]
[400266754,1767244240203,-796.7,0.00019178,2]
[400266755,1767244240213,-796.7,0.00019178,2]
[400266756,1767244240222,-796.7,0.00019178,2]
[400266757,1767244240231,-796.90033187,0.00019178,2]
[400266758,1767244240241,-302.9394212,0.00019278,2]
[400266759,1767244240250,-5873.13,0.000193,2]
[400266760,1767244240259,-302.9394212,0.00019467,2]
[400266761,1767244240268,-672.23,0.00019606,2]
[400266762,1767244240277,-302.9394212,0.00019656,2]
[400266763,1767244240286,-454.40913181,0.00019845,4]
[400266764,1767244240295,-569.96318046,0.00020034,4]
[400266765,1767244240304,-756.26,0.00020695,2]
[400266766,1767244240313,-317.16669429,0.00020991,2]
[400266767,1767244240322,-233.69,0.000211,2]
[400266768,1767244240332,-183.56718446,0.00021781,5]
[400266769,1767244240340,-840.29,0.00021785,2]
[400266770,1767244240350,-500.0,0.00021917,2]
[400266771,1767244240359,-500.0,0.00021917,2]
[400266772,1767244240368,-500.0,0.00021917,2]
[400266773,1767244240376,-500.0,0.00021917,2]
[400266774,1767244240385,-500.0,0.00021917,2]
[400266775,1767244240394,-500.0,0.00021917,2]
[400266776,1767244240403,-294.49990003,0.00021917,2]
[400266777,1767244240413,-475.26860085,0.00021917,2]
[400266778,1767244240422,-500.0,0.00021917,2]
[400266779,1767244240432,-500.0,0.00021917,2]
[400266780,1767244240441,-153.64364551,0.00021917,2]
[400266781,1767244240450,-350.29751082,0.00021917,2]
[400266782,1767244240459,-318.08002056,0.00021917,2]
[400266783,1767244240468,-154.69,0.00022,7]
[400266784,1767244240477,-218.88295567,0.00022861,2]
[400266785,1767244240487,-218.63167163,0.00022861,2]
[400266786,1767244240496,-557.68357726,0.00022861,2]
[400266787,1767244240505,-254.74500302,0.00022861,2]
[400266788,1767244240514,-277.87372174,0.00022861,2]
[400266789,1767244240625,-185.89452573,0.00022861,2]
[400266790,1767244240638,-157.43747443,0.00022906,2]
[400266791,1767244240648,-314.87494888,0.00022908,2]
[400266792,1767244240657,-347.21406533,0.00022991,2]
[400266793,1767244240666,-557.68357726,0.00022998,9]
[400266794,1767244240675,-218.63167163,0.00022998,9]
[400266795,1767244240684,-159.17,0.000231,2]
[400266796,1767244240694,-254.74500302,0.00023136,17]
[400266797,1767244240703,-277.87372174,0.00023136,6]
[400266798,1767244240712,-557.68357726,0.00023136,17]
[400266799,1767244240721,-218.63167163,0.00023136,17]
[400266800,1767244240734,-314.87494888,0.00023183,17]
[400266801,1767244240743,-557.68357726,0.00023273,25]
[400266802,1767244240752,-218.63167163,0.00023273,25]
[400266803,1767244240761,-254.74500302,0.00023411,32]
[400266804,1767244240772,-277.87372174,0.00023411,10]
[400266805,1767244240781,-557.68357726,0.00023411,32]
[400266806,1767244240790,-218.63167163,0.00023411,32]
[400266807,1767244240800,-314.87494888,0.00023459,32]
[400266808,1767244240810,-557.68357726,0.00023548,40]
[400266809,1767244240819,-218.63167163,0.00023548,40]
[400266810,1767244240827,-254.74500302,0.00023686,48]
[400266811,1767244240836,-277.87372174,0.00023686,14]
[400266812,1767244240845,-557.68357726,0.00023686,48]
[400266813,1767244240854,-218.63167163,0.00023686,48]
[400266814,1767244240863,-314.87494888,0.00023735,48]
[400266815,1767244240872,-557.68357726,0.00023823,56]
[400266816,1767244240881,-218.63167163,0.00023823,56]
[400266817,1767244240889,-185.89452573,0.00023823,56]
[400266818,1767244240898,-152.81821811,0.000239,2]
[400266819,1767244240907,-152.81821803,0.000239,2]
[400266820,1767244240916,-152.81821803,0.000239,2]
[400266821,1767244240925,-152.81821803,0.000239,2]
[400266822,1767244240934,-152.81821803,0.00023912,2]
[400266823,1767244240943,-254.74500302,0.00023961,63]
[400266824,1767244240953,-277.87372174,0.00023961,18]
[400266825,1767244240962,-557.68357726,0.00023961,63]
[400266826,1767244240971,-218.63167163,0.00023961,63]
[400266827,1767244240980,-619.84104039,0.00023962,2]
[400266828,1767244240990,-170.0,0.00023973,11]
[400266829,1767244240999,-5873.13,0.00024,2]
[400266830,1767244241009,-314.87494888,0.0002401,63]
[400266831,1767244241018,-218.63167157,0.00024064,110]
[400266832,1767244241028,-557.68357726,0.00024098,71]
[400266833,1767244241037,-218.63167163,0.00024098,71]
[400266834,1767244241046,-254.74500302,0.00024236,79]
[400266835,1767244241055,-277.87372174,0.00024236,22]
[400266836,1767244241064,-557.68357726,0.00024236,79]
[400266837,1767244241074,-218.63167163,0.00024236,79]
[400266838,1767244241083,-314.87494888,0.00024286,79]
[400266839,1767244241092,-557.68357726,0.00024373,86]
[400266840,1767244241101,-218.63167163,0.00024373,86]
[400266841,1767244241111,-254.74500302,0.00024511,94]
[400266842,1767244241120,-277.87372174,0.00024511,26]
[400266843,1767244241129,-557.68357726,0.00024511,94]
[400266844,1767244241139,-218.63167163,0.00024511,94]
[400266845,1767244241148,-314.87494888,0.00024561,94]
[400266846,1767244241157,-557.68357726,0.00024648,102]
[400266847,1767244241166,-218.63167163,0.00024648,102]
[400266848,1767244241176,-254.74500302,0.00024786,110]
[400266849,1767244241185,-277.87372174,0.00024786,30]
[400266850,1767244241194,-185.89452573,0.00024786,110]
[400266851,1767244241204,-157.43747443,0.00024835,110]
[400266852,1767244241213,-154.69,0.000249,7]
[400266853,1767244241222,-377.26143637,0.00024991,2]
[400266854,1767244241231,-188.0,0.00026712,21]
[400266855,1767244241241,-407.3088074,0.00026991,2]
[400266856,1767244241250,-416.0,0.00027115,2]
[400266857,1767244241259,-416.0,0.00027115,2]
[400266858,1767244241268,-152.81821803,0.00027156,2]
[400266859,1767244241277,-1100.0,0.00027652,7]
[400266860,1767244241286,-500.0,0.00027796,7]
[400266861,1767244241296,-1100.0,0.00027797,7]
[400266862,1767244241304,-1100.0,0.0002796,7]
[400266863,1767244241313,-500.0,0.00028069,7]
[400266864,1767244241323,-1100.0,0.00028085,7]
[400266865,1767244241332,-2000.0,0.00028096,7]
[400266866,1767244241341,-2000.0,0.00028105,7]
[400266867,1767244241350,-2000.0,0.00028113,7]
[400266868,1767244241359,-2000.0,0.00028122,7]
[400266869,1767244241368,-2000.0,0.00028131,7]
[400266870,1767244241377,-2000.0,0.0002814,7]
[400266871,1767244241386,-2000.0,0.00028149,7]
[400266872,1767244241395,-2000.0,0.00028157,7]
[400266873,1767244241404,-2000.0,0.00028166,7]
[400266874,1767244241414,-2000.0,0.00028175,7]
[400266875,1767244241423,-500.0,0.00028182,7]
[400266876,1767244241431,-2000.0,0.00028184,7]
[400266877,1767244241441,-2157.0,0.00028191,2]
[400266878,1767244241450,-628.0,0.00028191,2]
[400266879,1767244241458,-1364.0,0.00028191,2]
[400266880,1767244241467,-2000.0,0.00028193,7]
[400266881,1767244241477,-1100.0,0.00028195,7]
[400266882,1767244241486,-2000.0,0.00028201,7]
[400266883,1767244241495,-2000.0,0.0002821,7]
[400266884,1767244241504,-2000.0,0.00028219,7]
[400266885,1767244241513,-2000.0,0.00028219,7]
[400266886,1767244241522,-1100.0,0.00028437,7]
[400266887,1767244241532,-1100.0,0.00028478,7]
[400266888,1767244241541,-5873.13,0.000285,2]
[400266889,1767244241550,-1100.0,0.00028517,7]
[400266890,1767244241559,-2000.0,0.00028624,7]
[400266891,1767244241568,-1100.0,0.00028624,7]
[400266892,1767244241577,-1100.0,0.00028629,7]
[400266893,1767244241586,-1100.0,0.00028691,7]
[400266894,1767244241595,-152.64,0.000288,2]
[400266895,1767244241604,-152.64,0.000289,2]
[400266896,1767244241613,-437.35617844,0.00028991,2]
[400266897,1767244241622,-500.0,0.0002909,7]
[400266898,1767244241631,-152.64,0.000291,2]
[400266899,1767244241640,-152.64,0.000292,2]
[400266900,1767244241649,-152.64,0.000293,2]
[400266901,1767244241658,-175.0,0.00029452,34]
[400266902,1767244241667,-1100.0,0.00029463,7]
[400266903,1767244241676,-233.69,0.000295,14]
[400266904,1767244241686,-154.69,0.000295,7]
[400266905,1767244241695,-152.64,0.000295,2]
[400266906,1767244241703,-152.64,0.000296,2]
[400266907,1767244241713,-274.80124425,0.00029721,7]
[400266908,1767244241724,-188.11386458,0.0002981,4]
[400266909,1767244241735,-1100.0,0.00029862,7]
[400266910,1767244241744,-1100.0,0.0002992,7]
[400266911,1767244241753,-1100.0,0.00029933,7]
[400266912,1767244241763,-1179.0,0.0003,2]
[400266913,1767244241773,-1022.67877753,0.0003,7]
[400266914,1767244241782,-163.0,0.0003,14]
[400266915,1767244241791,-500.0,0.00030039,7]
[400266916,1767244241802,-159.17,0.000301,2]
[400266917,1767244241811,-416.0,0.00030115,2]
[400266918,1767244241820,-416.0,0.00030115,2]